bitfinex/quotes_ETHUSD_20220120
["timestamp","ask_amount","ask_price","bid_price","bid_amount"]
[1642720007579,5.74309246,3056.2,3055.3,0.00602108]
[1642720007779,5.74309246,3056.2,3054.4,2.81415]
[1642720007780,4.17671007,3055.4,3055.1,0.00715793]
[1642720008223,4.17671007,3055.4,3054.5,0.01056847]
[1642720008224,1.35933797,3055.3,3054.5,0.01056847]
[1642720008423,1.35933797,3055.3,3054.3,0.01170532]
[1642720008624,2.17805797,3055.3,3054.2,0.01227374]
[1642720008825,0.3,3055.2,3054.2,0.01227374]
[1642720009026,0.3,3055.2,3053.8,1.65208063]
[1642720009027,1.4316889,3054.5,3053.8,1.65208063]
[1642720009226,1.59134666,3054.5,3053.9,0.01397901]
[1642720009427,0.15965776,3054.4,3053.9,0.01397901]
[1642720009629,1.89134666,3054.5,3053.9,0.01397901]
[1642720009828,2.37968806,3054.4,3053.7,0.01511586]
[1642720010030,1.3404232,3053.6,3053.4,0.01682113]
[1642720010227,1.3404232,3053.6,3053.5,1.2391621]
[1642720010727,1.3404232,3053.6,3053.5,0.01625271]
[1642720011130,1.3404232,3053.6,3053.4,0.01682113]
[1642720011798,1.3404232,3053.6,3053.2,1.50464216]
[1642720011984,1.3404232,3053.6,3053.0,0.01909482]
[1642720012192,1.12394353,3054.0,3052.7,1.40778584]
[1642720012390,1.12394353,3054.0,3053.2,0.8190089]
[1642720012789,1.12394353,3054.0,3053.3,0.01738955]
[1642720012992,1.42394353,3054.0,3053.3,0.01738955]
[1642720013191,1.34833212,3053.9,3053.4,1.49688936]
[1642720013391,1.34833212,3053.9,3053.3,0.01738955]
[1642720013592,1.34833212,3053.9,3053.5,0.01625271]
[1642720013991,1.34833212,3053.9,3052.7,2.4571721]
[1642720013992,1.34833212,3053.9,3053.0,0.01909482]
[1642720014290,1.34833212,3053.9,3052.8,0.02023167]
[1642720014492,2.16742212,3053.9,3052.9,2.7793194]
[1642720014692,1.12394353,3054.0,3053.4,1.1955903]
[1642720014892,0.67885773,3054.5,3053.4,1.1955903]
[1642720015094,0.97885773,3054.5,3053.5,0.01625271]
[1642720015291,1.27885773,3054.5,3053.5,0.01625271]
[1642720015929,1.22249172,3053.6,3053.5,0.01625271]
[1642720016133,1.01466181,3055.0,3053.5,1.65391151]
[1642720016337,0.15965776,3055.0,3053.5,1.65391151]
[1642720016535,0.1308,3055.4,3053.6,2.77167628]
[1642720016736,2.99729776,3055.6,3053.7,2.77880934]
[1642720016737,2.45664,3055.6,3053.7,2.77880934]
[1642720016934,2.45664,3055.6,3054.2,0.8186488]
[1642720016935,0.15965776,3055.5,3054.2,0.8186488]
[1642720017135,1.46037889,3054.7,3054.2,2.12701635]
[1642720017337,1.12463714,3055.4,3054.3,0.01170532]
[1642720018137,1.12463714,3055.4,3054.5,1.63713]
[1642720018335,1.20446889,3055.5,3054.5,1.63713]
[1642720018535,1.20446889,3055.5,3054.6,0.01000005]
[1642720018536,0.98189153,3055.5,3054.6,0.01000005]
[1642720019178,0.98189153,3055.5,3054.5,0.82914847]
[1642720019381,0.98189153,3055.5,3054.3,1.01170532]
[1642720019584,1.80054153,3055.5,3054.6,0.01000005]
[1642720019882,1.09079059,3054.7,3054.4,0.01113689]
[1642720020084,1.25670133,3054.6,3054.4,0.01113689]
[1642720020885,1.25670133,3054.6,3054.1,0.01284216]
[1642720021385,1.25670133,3054.6,3054.1,0.83161746]
[1642720021787,1.25670133,3054.6,3054.2,0.01227374]
[1642720022793,1.28413412,3054.5,3054.2,0.01227374]
[1642720023436,20.23413412,3054.5,3053.7,0.01511586]
[1642720023637,20.23413412,3054.5,3053.2,0.01795798]
[1642720023638,20.53413412,3054.5,3053.2,0.01795798]
[1642720023838,1.18120479,3053.3,3053.2,0.01795798]
[1642720024235,1.18120479,3053.3,3053.2,1.31667726]
[1642720028482,1.40813774,3053.9,3053.3,0.818851]
[1642720028685,18.95,3054.5,3053.4,0.81886]
[1642720028883,18.95,3054.5,3053.6,1.6376506]
[1642720029084,19.25,3054.5,3053.6,1.6376506]
[1642720029383,1.51846519,3054.4,3053.7,0.01511586]
[1642720029584,1.20442923,3053.9,3053.7,0.01511586]
[1642720030626,1.39961685,3053.8,3053.7,0.01511586]
[1642720030828,1.34961685,3053.8,3053.7,0.01511586]
[1642720032030,1.34961685,3053.8,3053.5,0.01625271]
[1642720033035,1.34961685,3053.8,3053.6,0.8189727]
[1642720033435,1.34961685,3053.8,3053.7,0.01511586]
[1642720035101,1.34961685,3053.8,3053.5,0.01625271]
[1642720036805,1.94961685,3053.8,3053.7,0.0147882]
[1642720037004,20.89961685,3053.8,3053.7,0.0147882]
[1642720037204,21.71885685,3053.8,3053.7,0.00010406]
[1642720037404,21.18846,3053.8,3053.7,0.00010406]
[1642720037603,21.18846,3053.8,3052.3,3.1817]
[1642720037604,20.58846,3053.8,3052.5,0.00692514]
[1642720037803,20.58846,3053.8,3052.6,1.6382834]
[1642720037804,0.381,3053.7,3052.6,1.6382834]
[1642720038032,18.95,3053.6,3052.6,1.6382834]
[1642720038239,18.95,3053.4,3052.7,8.829e-05]
[1642720038438,0.01212607,3053.2,3052.7,8.829e-05]
[1642720038636,3.2,3052.8,3052.7,8.829e-05]
[1642720038835,0.3,3052.7,3051.9,2.78469587]
[1642720039034,18.95,3052.6,3052.0,2.78006019]
[1642720039235,0.81954,3052.5,3052.0,2.78412745]
[1642720039436,0.81954,3052.5,3052.1,0.00349883]
[1642720039637,1.11954,3052.5,3052.1,0.00349883]
[1642720039834,1.11954,3052.5,3051.1,0.00918307]
[1642720039835,1.63913,3052.5,3051.1,0.00918307]
[1642720040035,18.95,3052.4,3051.3,0.819542]
[1642720040235,18.95,3052.4,3051.6,1.24338077]
[1642720040236,1.50672877,3052.0,3051.6,1.24338077]
[1642720040437,1.50672877,3052.0,3051.7,2.78028065]
[1642720040639,1.50672877,3052.0,3051.7,2.78605318]
[1642720040938,0.81955,3051.9,3051.8,2.78548475]
[1642720041336,1.50672877,3052.0,3051.8,2.78548475]
[1642720041536,1.50672877,3052.0,3051.8,0.0052041]
[1642720041777,1.50672877,3052.0,3051.9,3.568e-05]
[1642720041977,1.50672877,3052.0,3050.4,4.08646378]
[1642720041978,0.3,3051.9,3051.2,0.00401464]
[1642720042177,18.95,3051.7,3051.0,0.00515149]
[1642720042377,1.26311576,3051.3,3051.1,2.78522319]
[1642720042582,1.26311576,3051.3,3050.7,1.28794903]
[1642720042776,1.56311576,3051.3,3051.2,1.464e-05]
[1642720042979,1.56311576,3051.3,3050.8,1.85474807]
[1642720042980,18.95,3051.2,3050.8,1.85474807]
[1642720043181,18.95,3051.2,3049.5,1.65068817]
[1642720043182,0.381,3051.1,3049.5,1.65068817]
[1642720043383,0.381,3051.1,3049.3,1.65068817]
[1642720043384,18.95,3050.9,3049.3,1.65068817]
[1642720043584,18.95,3050.9,3049.0,7.39]
[1642720043585,18.95,3050.7,3049.2,1.65068817]
[1642720043781,18.95,3050.7,3049.3,1.32431809]
[1642720043782,1.15722992,3049.9,3049.3,1.32431809]
[1642720043984,1.17983946,3050.1,3049.8,1.30874218]
[1642720044184,0.381,3050.3,3049.8,1.30874218]
[1642720044386,0.00229473,3050.5,3049.8,1.30874218]
[1642720044884,0.00172631,3050.4,3049.4,1.6546461]
[1642720045095,0.00172631,3050.4,3048.9,4.45703033]
[1642720045096,3.25,3049.7,3048.0,8.21996701]
[1642720045295,3.25,3049.7,3048.2,4.73797477]
[1642720045296,0.2948,3049.6,3048.2,4.73797477]
[1642720045583,0.2948,3049.6,3047.1,3.28031]
[1642720045584,0.01269914,3048.3,3047.1,3.28031]
[1642720045781,0.676,3048.2,3046.8,1.64081773]
[1642720045983,1.26225515,3047.5,3047.2,0.00511581]
[1642720046184,0.1638,3047.3,3047.2,0.00511581]
[1642720046380,0.85688979,3047.3,3046.4,0.0096632]
[1642720046584,0.85688979,3047.3,3046.2,0.07374127]
[1642720046585,0.381,3047.3,3046.3,0.01023162]
[1642720046786,0.381,3047.8,3046.5,0.07374127]
[1642720047186,0.01261669,3048.2,3047.7,1.48688756]
[1642720047387,0.1312,3048.3,3047.7,1.48688756]
[1642720047588,0.1312,3048.3,3047.8,0.07544654]
[1642720047986,0.82034,3049.3,3047.9,0.07487812]
[1642720048188,0.00795793,3049.5,3048.9,1.32554246]
[1642720048389,0.00625266,3049.2,3048.9,1.32554246]
[1642720048591,0.0073895,3049.4,3048.9,1.32554246]
[1642720048791,0.381,3050.8,3048.9,1.32554246]
[1642720048792,8.423e-05,3049.1,3049.0,0.07374127]
[1642720048988,8.423e-05,3049.1,3049.0,0.75474127]
[1642720048989,7.661e-05,3049.1,3049.0,0.75474127]
[1642720049193,7.661e-05,3049.1,3049.0,4.00474127]
[1642720049394,7.661e-05,3049.1,3049.0,5.62042677]
[1642720049594,7.661e-05,3049.1,3049.0,6.62042677]
[1642720050095,0.00113685,3049.3,3049.0,4.21769847]
[1642720050297,0.00113685,3049.3,3049.0,3.1439572]
[1642720050693,0.00113685,3049.3,3049.1,1.0]
[1642720050896,0.00113685,3049.3,3049.0,2.7629572]
[1642720051298,0.00113685,3049.3,3049.0,0.45474127]
[1642720051299,3.685e-05,3049.3,3049.0,0.45474127]
[1642720051496,3.685e-05,3049.3,3049.1,0.0011]
[1642720051694,3.685e-05,3049.3,3049.2,5.27038]
[1642720051895,3.685e-05,3049.3,3049.2,5.34412127]
[1642720052293,3.685e-05,3049.3,3049.2,6.94137127]
[1642720052493,3.685e-05,3049.3,3049.2,6.92205127]
[1642720052931,3.685e-05,3049.3,3049.2,6.92073127]
[1642720053132,0.01248072,3051.1,3049.3,3.25]
[1642720053335,0.01248072,3051.1,3049.7,1.63898]
[1642720053539,6.32e-05,3051.0,3050.6,1.49402769]
[1642720053735,6.32e-05,3051.0,3050.7,3.07164124]
[1642720053937,0.00347374,3051.6,3050.9,0.00532345]
[1642720054135,0.00347374,3051.6,3051.0,0.38714739]
[1642720054335,0.00290532,3051.5,3051.0,0.381]
[1642720054534,0.00290532,3051.5,3051.2,1.26287432]
[1642720054735,1.11520369,3052.4,3051.3,0.512]
[1642720054736,0.00233689,3051.4,3051.3,0.512]
[1642720054938,0.00233689,3051.4,3051.3,0.28574]
[1642720055334,0.00233689,3051.4,3051.2,1.25719912]
[1642720055736,0.01214305,3052.1,3051.2,1.25719912]
[1642720055737,0.00176847,3051.3,3051.2,1.25719912]
[1642720057984,0.00176847,3051.3,3051.2,5.10719912]
[1642720058183,0.00176847,3051.3,3051.2,6.10719912]
[1642720058586,0.00176847,3051.3,3051.2,7.34762344]
[1642720058986,0.00176847,3051.3,3051.2,4.09762344]
[1642720059191,0.00176847,3051.3,3051.2,2.49762344]
[1642720060930,0.00176847,3051.3,3051.2,4.39762344]
[1642720061130,0.00176847,3051.3,3051.2,5.39762344]
[1642720061337,1.94085997,3052.9,3051.3,0.05546402]
[1642720061338,0.13819997,3052.9,3051.3,0.05546402]
[1642720061531,0.13819997,3052.9,3051.4,0.381]
[1642720061836,0.13819997,3052.9,3051.4,0.681]
[1642720061837,0.00682108,3052.5,3051.4,0.681]
[1642720062034,0.00682108,3052.5,3051.4,0.381]
[1642720062231,0.00625266,3052.4,3052.2,1.32031641]
[1642720062432,0.00625266,3052.4,3051.7,1.46235503]
[1642720062632,0.00568423,3052.3,3051.4,0.681]
[1642720063034,0.00511581,3052.2,3051.4,0.381]
[1642720063233,0.00511581,3052.2,3051.3,3.7038]
[1642720063431,2.2476489,3052.6,3051.3,3.7038]
[1642720063432,0.00454739,3052.1,3051.6,1.33872637]
[1642720063731,0.00397896,3052.0,3051.6,1.33872637]
[1642720064178,2.4114489,3052.6,3051.6,1.33872637]
[1642720064179,0.00341054,3051.9,3051.6,1.33872637]
[1642720064584,0.00284212,3051.8,3050.8,3.31727365]
[1642720064784,0.00284212,3051.8,3050.8,0.00107365]
[1642720064984,0.01859879,3051.6,3050.9,0.0022737]
[1642720065284,0.00113685,3051.5,3050.5,0.00454739]
[1642720065484,0.01512081,3051.4,3050.5,0.00454739]
[1642720065687,0.01512081,3051.4,3051.2,1.34377129]
[1642720065886,0.00113685,3051.5,3051.2,1.34377129]
[1642720066688,0.00113685,3051.5,3050.3,0.00568424]
[1642720067186,0.00113685,3051.5,3050.4,1.3743053]
[1642720067388,0.00113685,3051.5,3050.0,0.00738951]
[1642720067585,0.00113685,3051.5,3050.5,0.00454739]
[1642720067785,0.00113685,3051.5,3051.0,1.11652312]
[1642720068253,0.00113685,3051.5,3051.1,0.00113685]
[1642720070059,1.91082075,3051.6,3051.1,0.00113685]
[1642720070258,1.80312,3051.9,3051.1,0.0022737]
[1642720070259,1.63932,3051.9,3051.1,0.0022737]
[1642720070465,0.8195482,3052.3,3051.1,0.0022737]
[1642720070659,0.00170527,3051.8,3051.1,0.0022737]
[1642720071061,0.00113684,3051.7,3051.1,0.0022737]
[1642720071461,1.5235661,3051.8,3051.1,0.0022737]
[1642720071697,0.82348896,3052.2,3051.1,0.0022737]
[1642720071881,0.00113684,3051.7,3051.1,0.0022737]
[1642720072084,0.00341054,3052.1,3051.1,0.0022737]
[1642720072284,0.0073895,3052.8,3051.1,2.48356621]
[1642720072483,0.00284211,3052.0,3051.1,0.3022737]
[1642720072687,1.19579823,3052.7,3051.9,1.37655595]
[1642720072888,1.18897715,3052.7,3051.2,7.36520527]
[1642720073088,1.18897715,3052.7,3051.3,1.0]
[1642720073286,1.18897715,3052.7,3051.3,1.30113685]
[1642720073487,1.18897715,3052.7,3051.3,0.30113685]
[1642720073791,1.48897715,3052.7,3051.3,0.30113685]
[1642720074886,0.3,3052.7,3051.7,1.14679281]
[1642720075289,0.13819997,3052.9,3051.7,1.14679281]
[1642720075733,0.01297555,3052.6,3051.3,0.00113685]
[1642720075935,0.81959,3052.3,3051.3,1.35371316]
[1642720076133,0.81959,3052.3,3051.3,1.35257631]
[1642720076336,0.00397896,3052.2,3050.6,0.00511582]
[1642720076536,0.16777896,3052.2,3050.6,0.00511582]
[1642720076733,0.8196,3051.8,3050.6,0.00511582]
[1642720076934,0.01282125,3051.7,3050.7,1.48730722]
[1642720077135,0.00113684,3051.7,3050.7,1.48730722]
[1642720077338,0.00113684,3051.7,3051.3,1.43110428]
[1642720077945,1.6392467,3051.8,3051.3,1.43110428]
[1642720077946,1.59038354,3051.8,3051.3,1.43110428]
[1642720078134,0.7696,3051.8,3051.3,1.43110428]
[1642720078335,1.80299,3052.2,3051.4,0.00170527]
[1642720078535,1.63919,3052.2,3051.4,0.00170527]
[1642720078736,0.8218454,3052.1,3051.4,0.00170527]
[1642720078935,1.2856454,3052.1,3051.4,0.00170527]
[1642720079177,0.01157861,3051.9,3051.4,0.00170527]
[1642720079382,0.81958,3051.9,3051.4,0.00170527]
[1642720079586,1.11958,3051.9,3051.4,0.00170527]
[1642720079785,19.76958,3051.9,3051.4,0.00170527]
[1642720080387,19.76958,3051.9,3051.0,0.00397896]
[1642720080585,19.76958,3051.9,3051.1,0.00341054]
[1642720080586,0.81963,3051.7,3051.1,0.00341054]
[1642720080786,0.81963,3051.7,3051.0,0.00397896]
[1642720081186,0.81963,3051.7,3051.4,1.52984216]
[1642720081388,0.00170527,3052.0,3051.4,1.52984216]
[1642720081588,0.81955,3051.9,3051.5,0.00113684]
[1642720081787,1.64027005,3051.9,3051.5,0.00113684]
[1642720081987,19.25,3051.8,3051.5,0.00113684]
[1642720082190,19.25,3051.8,3051.0,0.00397896]
[1642720082191,20.88933,3051.8,3051.0,0.00397896]
[1642720082389,20.88933,3051.8,3050.5,0.00682108]
[1642720083142,20.88933,3051.8,3050.5,0.0076404]
[1642720083342,0.8196633,3051.6,3050.5,0.0076404]
[1642720083548,0.81966,3051.5,3051.1,1.24160519]
[1642720083743,0.81966,3051.5,3051.1,1.24242451]
[1642720083944,0.81966,3051.5,3051.2,0.00284211]
[1642720084144,0.81966,3051.5,3051.2,0.00366143]
[1642720084643,0.81966,3051.5,3051.3,0.00227369]
[1642720084845,0.81966,3051.5,3051.3,0.00309301]
[1642720085249,0.81966,3051.5,3051.4,0.00170527]
[1642720085445,0.81966,3051.5,3051.4,0.00252459]
[1642720085646,20.58933,3051.8,3051.4,0.00252459]
[1642720085647,18.95,3051.8,3051.4,0.00252459]
[1642720086047,18.95,3051.8,3051.5,0.00113684]
[1642720086247,18.95,3051.8,3051.5,0.00195616]
[1642720086889,20.88926,3051.8,3051.5,0.00195616]
[1642720087086,20.58926,3051.8,3051.5,0.00195616]
[1642720087288,0.82071685,3051.9,3051.5,0.0025654]
[1642720087490,2.22993277,3051.8,3051.5,0.0025654]
[1642720087688,19.77071685,3051.9,3051.5,0.0025654]
[1642720087892,18.95,3051.7,3051.5,0.0025654]
[1642720088388,20.5892832,3051.7,3051.5,0.0025654]
[1642720090091,5.4375717,3051.6,3051.5,0.0025654]
[1642720090292,20.5892832,3051.7,3049.6,2.81561]
[1642720090293,0.8196619,3051.2,3049.6,2.81561]
[1642720090533,1.64008409,3051.4,3050.3,1.26775824]
[1642720090534,1.43167117,3050.9,3050.3,1.26775824]
[1642720090730,1.43167117,3050.9,3050.3,2.81201125]
[1642720091535,1.6394688,3050.8,3050.3,2.81201125]
[1642720092137,0.8197288,3050.8,3050.3,2.81201125]
[1642720092536,1.45406593,3050.8,3050.3,2.81201125]
[1642720092737,0.8196487,3051.0,3050.3,1.26775824]
[1642720092937,0.8196487,3051.0,3050.1,0.82762793]
[1642720093142,0.8196487,3051.0,3050.2,0.56132423]
[1642720093338,0.8196487,3051.0,3050.2,0.57014233]
[1642720093537,0.8196487,3051.0,3050.3,0.56814532]
[1642720093739,0.8195958,3051.2,3050.3,0.00824968]
[1642720093940,0.81963,3051.3,3050.4,0.00625266]
[1642720094193,1.46527558,3051.0,3050.4,1.34463276]
[1642720094582,0.8197,3050.9,3050.5,0.00568424]
[1642720094783,0.8197,3050.9,3050.5,0.00711283]
[1642720094984,0.3,3050.8,3050.5,0.00711283]
[1642720095186,0.3,3050.8,3050.5,0.00142859]
[1642720095187,3.25,3050.6,3050.5,0.00142859]
[1642720095388,24.1963285,3050.6,3050.5,2.859e-05]
[1642720095586,25.1773285,3050.6,3050.5,2.859e-05]
[1642720095791,18.95,3050.4,3049.5,0.56346705]
[1642720095988,18.95,3050.1,3048.8,3.9903]
[1642720096187,18.95,3050.1,3049.6,0.00568423]
[1642720096387,18.95,3050.1,3049.6,0.00711285]
[1642720096586,18.95,3050.1,3049.6,1.38032656]
[1642720096786,18.95,3050.0,3049.7,0.00511581]
[1642720096988,18.95,3050.0,3049.7,0.00654443]
[1642720096989,22.23053,3050.0,3049.7,0.00654443]
[1642720097188,22.39442,3050.0,3049.7,0.00654443]
[1642720097387,22.39442,3050.0,3049.8,4.738e-05]
[1642720097388,2.65,3049.9,3049.8,4.738e-05]
[1642720097587,2.731,3049.9,3049.8,0.001476]
[1642720097788,4.35724727,3049.9,3049.8,0.001476]
[1642720098037,0.82013,3050.0,3049.8,1.18616829]
[1642720098238,19.77013,3050.0,3049.8,0.001476]
[1642720098440,19.77121946,3050.0,3049.8,0.001476]
[1642720099042,0.3,3049.9,3049.8,0.001476]
[1642720099444,5.54380586,3049.9,3049.8,0.001476]
[1642720099645,3.55,3049.9,3049.8,0.001476]
[1642720100452,3.71389,3049.9,3049.8,0.001476]
[1642720100649,3.85,3049.9,3049.8,0.001476]
[1642720101052,3.85,3049.9,3049.0,1.11266878]
[1642720101053,1.28387761,3049.5,3049.0,1.11266878]
[1642720101248,0.8201636,3049.4,3049.0,1.11266878]
[1642720101450,0.8201636,3049.4,3049.1,0.00397897]
[1642720103083,0.8201636,3049.4,3048.6,1.4510773]
[1642720103084,0.8201636,3049.4,3048.7,0.00625266]
[1642720103284,0.8202226,3049.3,3048.7,0.00625266]
[1642720103486,0.82024,3049.1,3048.7,0.00625266]
[1642720104285,0.82024,3049.1,3048.8,1.26204355]
[1642720104687,0.82024,3049.1,3048.9,0.00511581]
[1642720104887,1.6404913,3049.1,3048.9,0.00511581]
[1642720105087,1.6404913,3049.1,3048.7,0.00625266]
[1642720105542,1.6404913,3049.1,3048.6,0.00682108]
[1642720105543,0.3,3049.0,3048.6,0.00682108]
[1642720105740,1.9404913,3049.1,3048.6,0.00682108]
[1642720105741,1.6404913,3049.1,3048.6,0.00682108]
[1642720105941,1.10886145,3048.8,3048.6,0.00682108]
[1642720106141,2.74949925,3048.8,3048.6,0.00682108]
[1642720106841,1.6406378,3048.8,3048.6,0.00682108]
[1642720107842,1.34504162,3048.7,3048.6,0.00682108]
[1642720108043,1.6406378,3048.8,3048.6,0.00682108]
[1642720109047,1.6406378,3048.8,3048.6,0.00682108]
[1642720109487,0.3,3048.7,3048.6,0.00682108]
[1642720109686,0.3,3048.7,3048.5,0.59550371]
[1642720110089,1.2895318,3048.6,3048.5,0.59550371]
[1642720111187,1.4534218,3048.6,3048.5,0.59550371]
[1642720111386,1.2895318,3048.6,3048.5,0.59550371]
[1642720112391,1.5895318,3048.6,3048.5,0.59550371]
[1642720113337,3.9895318,3048.6,3048.5,0.59550371]
[1642720113537,4.1534218,3048.6,3048.5,0.59550371]
[1642720114039,4.1455767,3048.6,3048.5,0.59550371]
[1642720114639,1.7455767,3048.6,3048.5,0.59550371]
[1642720115240,1.5816867,3048.6,3048.5,0.59550371]
[1642720117487,1.7455767,3048.6,3048.5,0.59550371]
[1642720117690,1.5816867,3048.6,3048.5,0.59550371]
[1642720117887,2.0455767,3048.6,3048.5,0.59550371]
[1642720118088,1.7455767,3048.6,3048.5,0.59550371]
[1642720118286,4.1955767,3048.6,3048.5,0.59550371]
[1642720119789,25.80377877,3048.6,3048.5,0.59550371]
[1642720120429,23.5265767,3048.6,3048.5,0.59550371]
[1642720120840,18.95,3048.1,3046.1,0.131088]
[1642720121038,18.95,3047.8,3046.1,7.5152]
[1642720121237,18.95,3047.8,3047.2,0.00795793]
[1642720121238,21.45383468,3047.7,3047.2,0.00795793]
[1642720121538,19.25,3047.7,3046.3,0.01307374]
[1642720121738,1.09811357,3046.9,3046.5,1.38732888]
[1642720121940,1.09811357,3046.9,3046.2,0.01364217]
[1642720122244,1.09811357,3046.9,3046.0,0.01477901]
[1642720122245,1.39811357,3046.9,3046.0,0.01477901]
[1642720122442,18.95,3046.8,3046.0,0.01477901]
[1642720122641,18.95,3046.8,3045.2,9.0586564]
[1642720122642,0.16389,3046.7,3045.3,0.01875798]
[1642720122840,19.331,3046.6,3045.4,0.64103194]
[1642720123040,19.331,3046.6,3045.6,2.52173642]
[1642720123041,19.79489,3046.6,3045.6,2.52173642]
[1642720123241,19.79489,3046.6,3045.6,1.3850051]
[1642720123441,22.2580459,3046.6,3045.7,0.01648429]
[1642720123644,22.2580459,3046.6,3044.3,3.9562]
[1642720123645,3.25,3046.3,3044.3,3.9562]
[1642720123842,0.67619,3046.2,3044.4,0.64071827]
[1642720124040,0.67619,3046.2,3045.0,0.00397896]
[1642720124041,18.95,3046.1,3045.0,0.00397896]
[1642720124318,0.54489,3046.0,3045.0,0.00397896]
[1642720124517,18.95,3045.7,3045.3,1.19759085]
[1642720124721,0.8213409,3045.5,3045.0,1.33362214]
[1642720124920,0.82138,3045.4,3044.2,1.0]
[1642720125118,0.82138,3045.4,3044.3,0.62495178]
[1642720125119,1.12138,3045.4,3044.3,0.62495178]
[1642720125319,20.07138,3045.4,3044.3,0.6329097]
[1642720125519,20.07138,3045.4,3044.4,0.62495178]
[1642720125718,20.07138,3045.4,3044.3,0.00795792]
[1642720125918,19.77138,3045.4,3045.2,1.14378128]
[1642720126318,19.77138,3045.4,3045.3,0.00227369]
[1642720126519,2.05,3045.3,3044.1,0.01252221]
[1642720126717,0.8214,3045.2,3044.2,0.62502925]
[1642720126918,0.8214,3045.2,3045.0,0.00170527]
[1642720127125,19.7714,3045.2,3045.0,0.00170527]
[1642720127321,22.7952143,3045.1,3045.0,0.00170527]
[1642720127624,21.4141264,3045.1,3044.6,0.00397896]
[1642720127821,20.5927571,3045.1,3044.6,1.14434999]
[1642720128237,18.95,3045.1,3044.7,0.00341054]
[1642720128437,0.82139,3044.9,3044.7,0.00341054]
[1642720128637,0.8213766,3045.1,3044.7,1.53121727]
[1642720128837,0.8213766,3045.1,3044.7,0.00341054]
[1642720129042,0.8213766,3045.1,3044.8,0.00284212]
[1642720129238,0.8213766,3045.1,3044.7,0.00341054]
[1642720129438,0.8213766,3045.1,3044.2,0.00625266]
[1642720129640,2.4641296,3045.1,3044.2,0.00625266]
[1642720129839,20.592753,3045.1,3044.1,0.00682108]
[1642720130039,0.8214424,3044.8,3044.5,1.47929733]
[1642720130246,0.8214424,3044.8,3043.7,1.93405198]
[1642720130439,0.00341054,3044.7,3043.8,1.0]
[1642720130640,0.00341054,3044.7,3043.8,0.00170527]
[1642720130841,0.00284212,3044.6,3043.8,0.00170527]
[1642720131041,0.00284212,3044.6,3043.7,0.00227369]
[1642720131239,0.82147,3044.8,3044.0,1.11028268]
[1642720131240,0.00227369,3044.5,3044.0,1.11028268]
[1642720131442,0.00227369,3044.5,3044.3,1.36657206]
[1642720131683,0.00170527,3044.4,3044.3,1.36657206]
[1642720132488,0.00170527,3044.4,3044.0,1.11028268]
[1642720132689,0.00170527,3044.4,3043.5,0.00341054]
[1642720132891,0.00113685,3044.3,3043.5,0.00341054]
[1642720133289,0.01520675,3044.4,3043.5,0.00341054]
[1642720133489,0.01520675,3044.4,3043.4,0.00397896]
[1642720133689,0.8214322,3044.5,3042.9,4.57242642]
[1642720133690,0.00113685,3044.3,3044.1,1.36271628]
[1642720134089,1.6429831,3044.6,3044.1,1.36271628]
[1642720134291,0.00341054,3044.7,3044.1,1.36271628]
[1642720134292,0.82481594,3044.7,3044.1,1.36271628]
[1642720134492,0.00227369,3044.5,3044.1,1.36271628]
[1642720134693,0.00284212,3044.6,3044.1,1.36271628]
[1642720134892,0.00170527,3044.4,3044.1,1.36271628]
[1642720135094,0.00227369,3044.5,3044.1,1.36271628]
[1642720135293,0.00113685,3044.3,3044.1,1.36271628]
[1642720135562,0.8214054,3044.7,3044.1,1.36271628]
[1642720135563,0.22311067,3044.7,3044.1,1.36271628]
[1642720135759,0.8213201,3045.1,3044.2,0.3]
[1642720136058,0.8213201,3045.1,3044.2,0.30113685]
[1642720136059,0.00113685,3044.6,3044.2,0.30113685]
[1642720136259,0.00113685,3044.6,3044.2,0.00113685]
[1642720136661,18.95,3044.4,3044.2,0.00113685]
[1642720136862,18.95,3044.4,3044.2,0.01528584]
[1642720137061,18.95,3044.4,3044.2,0.01414899]
[1642720137659,1.53254451,3043.7,3043.6,0.00454739]
[1642720137861,0.8217045,3043.7,3043.6,0.00454739]
[1642720138064,0.8217045,3043.7,3043.3,0.00625266]
[1642720147190,0.8217045,3043.7,3043.3,1.00625266]
[1642720147695,1.20133155,3043.6,3043.4,0.00568423]
[1642720147897,1.6435102,3043.6,3043.4,0.00568423]
[1642720148095,1.6435102,3043.6,3043.3,1.00625266]
[1642720148496,1.6435102,3043.6,3043.4,0.00568423]
[1642720149296,3.84608811,3043.6,3043.4,0.00568423]
[1642720149502,3.84608811,3043.6,3042.8,0.00909478]
[1642720149503,0.0056,3043.4,3042.8,0.00909478]
[1642720149699,4.10746119,3043.5,3042.5,0.01080005]
[1642720149700,18.95,3043.2,3042.5,0.01080005]
[1642720149898,20.9748546,3043.1,3042.2,0.01250532]
[1642720150098,20.9748546,3043.1,3041.3,6.9471]
[1642720150099,1.45400436,3042.5,3042.0,1.20056772]
[1642720150298,1.45400436,3042.5,3041.8,1.14629764]
[1642720150299,1.45400436,3042.5,3041.6,0.01591586]
[1642720150549,1.45400436,3042.5,3042.1,0.01307374]
[1642720150745,1.45400436,3042.5,3041.4,0.0170527]
[1642720150953,1.45400436,3042.5,3041.3,0.01762113]
[1642720151147,1.45400436,3042.5,3041.7,1.54603798]
[1642720151346,0.82197,3042.3,3041.7,3.04849662]
[1642720151546,0.82197,3042.3,3041.8,0.01477901]
[1642720152852,0.82197,3042.3,3041.8,1.01477901]
[1642720153252,0.82197,3042.3,3041.9,0.01421059]
[1642720153854,2.20680959,3042.3,3041.9,0.01421059]
[1642720154055,0.82218,3042.2,3041.9,0.01421059]
[1642720154288,0.8221654,3041.9,3040.9,0.01989482]
[1642720154488,0.8221654,3041.9,3041.6,1.13556422]
[1642720154690,0.381,3042.7,3041.6,1.13556422]
[1642720154888,0.381,3042.7,3041.7,0.01534743]
[1642720155087,1.20306,3042.7,3041.7,0.01534743]
[1642720155288,2.22854368,3042.6,3041.7,0.01534743]
[1642720155487,3.82419887,3042.3,3041.7,1.13431101]
[1642720155689,4.12629887,3042.3,3041.7,1.13431101]
[1642720155888,4.12629887,3042.3,3041.8,0.01477901]
[1642720155889,5.32950887,3042.3,3041.8,0.01477901]
[1642720156096,5.32950887,3042.3,3040.7,0.01231488]
[1642720156097,4.07216,3042.2,3040.7,0.01231488]
[1642720156293,4.07216,3042.2,3040.6,0.007]
[1642720156294,0.0132338,3042.0,3040.6,0.007]
[1642720156595,18.95,3041.6,3041.1,7.896e-05]
[1642720156792,18.95,3041.6,3040.7,0.00235266]
[1642720156793,0.381,3041.5,3040.7,0.00235266]
[1642720156992,18.95,3041.4,3040.7,0.00235266]
[1642720157193,1.2035,3041.3,3040.7,0.00235266]